Cogmind - Beta 17 @@@ ROGUE MODE // 2026.06.26 @ 13:39:05 Player: kite Result: Self-destructed Performance ------------- Evolutions (2) 1000 Regions Visited (3) 600 Robots Destroyed (0) 0 Value Destroyed (0) 0 Prototype IDs (0) 0 Alien Tech Used (0) 0 Bonus (470) 470 TOTAL SCORE: 2070 Bonus ------- Pacifist 470 Cogmind --------- Core Integrity 474/550 Matter 75/300 Energy 100/100 System Corruption 0% Temperature Cool (0) Movement Core (50) Location -8/Materials Parts ------- > --- POWER (1) -------- (None) > --- PROPULSION (6) --- Light Treads > --- UTILITY (2) ------ Advanced Visual Processing Unit > --- WEAPON (2) ------- (None) > --- INVENTORY (5) ---- Aluminum Leg Large Storage Unit Seismic Detector Hardened Medium Armor Plating Hardened Medium Armor Plating Peak State ------------ > --- POWER ------------ (None) > --- PROPULSION ------- Light Treads Light Treads > --- UTILITY ---------- Advanced Visual Processing Unit Propulsion Shielding > --- WEAPON ----------- (None) > --- INVENTORY -------- Aluminum Leg Small Storage Unit Seismic Detector Hardened Medium Armor Plating Hardened Medium Armor Plating [Rating: 6] Favorites ----------- Power Ion Engine Engine Ion Engine Propulsion Light Treads Treads Light Treads Utility Propulsion Shielding Device Seismic Detector Processor Advanced Visual Processing Unit Protection Propulsion Shielding Weapon None Build | -11 -10 -9 -8 ------- Run | Yrd Mat Mat Mat Slots Evolved 4 | . . 2 2 Power . | . . . . Propulsion 4 | . . 2 2 Utility . | . . . . Weapon . | . . . . Parts Attached 8 | 4 3 1 . Power 2 | 2 . . . Engine 2 | 2 . . . Core . | . . . . Reactor . | . . . . Propulsion 2 | 2 . . . Treads 2 | 2 . . . Leg . | . . . . Wheel . | . . . . Hover . | . . . . Flight . | . . . . Utility 4 | . 3 1 . Device 1 | . 1 . . Storage . | . . . . Processor 1 | . . 1 . Hackware . | . . . . Protection 2 | . 2 . . Artifact . | . . . . Weapon . | . . . . Energy Gun . | . . . . Energy Cannon . | . . . . Ballistic Gun . | . . . . Ballistic Cannon . | . . . . Launcher . | . . . . Special Weapon . | . . . . Impact Weapon . | . . . . Slashing Weapon . | . . . . Piercing Weapon . | . . . . Special Melee Weapon . | . . . . Unidentified Prototypes . | . . . . Parts Lost 2 | . . 1 1 Power . | . . . . Propulsion 1 | . . . 1 Utility 1 | . . 1 . Weapon . | . . . . Highest Loss Streak 1 | . . 1 1 To Critical Strikes . | . . . . Average Backups 4 | 1 4 4 5 Power 1 | . 2 . . Propulsion . | . 1 1 1 Utility 2 | . 1 3 4 Weapon . | . . . . Tool/Special . | . . . . Unused Backups 5 | . . . 5 Power . | . . . . Propulsion 1 | . . . 1 Utility 4 | . . . 4 Weapon . | . . . . Tool/Special . | . . . . Average Slot Usage (%) 38 | . 42 42 21 Treads 22 | . 28 22 12 Device 1 | . 3 . . Processor 3 | . . 5 9 Protection 10 | . 10 14 . Peak Build Rating 6 | 3 4 6 5 Average Rating 3 | 1 3 4 4 On Entrance 2 | . 2 4 5 Avg Prop Armor Cover (%) 40 | 41 40 41 36 Naked Turns . | . . . . Heaviest Build 5 | 5 2 2 . Greatest Support 40 | 40 40 3 3 Greatest Overweight (x) 1 | 1 . . . Average Overweight (x) . | . . . . Largest Inventory Capacity 5 | 5 5 5 5 Average Capacity 5 | 5 5 5 5 Most Carried 5 | 4 5 5 5 Average Carried 4 | 1 4 4 5 Final Capacity 5 | 5 5 5 5 Final Carried 5 | 4 5 5 5 Class Distribution -------------------- 100% | Mutant Dominant Class ---------------- Mutant | -10/Materials Mutant | -9/Materials Mutant | -8/Materials Resources | -11 -10 -9 -8 ----------- Run | Yrd Mat Mat Mat Matter Collected 41 | 41 . . . Remotely . | . . . . Salvage Created . | . . . . Parts . | . . . . Haulers Intercepted . | . . . . Recyclers Shooed . | . . . . Parts Field Recycled . | . . . . Retrieved Matter . | . . . . Parts Self-Destructed . | . . . . Prevented . | . . . . Parts Restored . | . . . . Kills | -11 -10 -9 -8 ------- Run | Yrd Mat Mat Mat Combat Hostiles Destroyed . | . . . . Classes Destroyed . | . . . . Best Kill Streak . | . . . . Combat Bots Only . | . . . . Max Kills in Single Turn . | . . . . Gunslinging . | . . . . Exploded . | . . . . Melee . | . . . . Uniques/NPCs Destroyed . | . . . . Combat | -11 -10 -9 -8 -------- Run | Yrd Mat Mat Mat Hostile Shots Fired 89 | . 30 43 16 Missed 42 | . 18 17 7 Hits 47 | . 12 26 9 Projectile 47 | . 12 26 9 Critical Strikes 2 | . 1 1 . Actively Blocked 2 | . 1 1 . Damage Taken 560 | . 101 311 148 Core 197 | . 39 82 76 Absorbed by Shields . | . . . . Redirected to Shielding 67 | . 16 51 . Core Remaining (%) 87 | 100 84 79 . Volleys Fired . | . . . . Largest . | . . . . Hottest . | . . . . Shots Fired . | . . . . Gun . | . . . . Cannon . | . . . . Launcher . | . . . . Special . | . . . . Kinetic . | . . . . Thermal . | . . . . Explosive . | . . . . Electromagnetic . | . . . . Robot Hit Streak . | . . . . Robot Miss Streak . | . . . . Penetration Max . | . . . . Secondary Targets . | . . . . Shots Hit Robots . | . . . . Core Hits . | . . . . Critical Kills . | . . . . Critical Parts Destroyed . | . . . . Critical Strikes . | . . . . Melee Attacks . | . . . . Impact . | . . . . Slashing . | . . . . Piercing . | . . . . Sneak Attacks . | . . . . Combat Hostiles . | . . . . Follow-up Attacks . | . . . . Damage Inflicted 3 | . 3 . . Guns . | . . . . Cannons . | . . . . Explosions . | . . . . Melee . | . . . . Ramming 3 | . 3 . . Kinetic . | . . . . Thermal . | . . . . Explosive . | . . . . Electromagnetic . | . . . . Impact . | . . . . Slashing . | . . . . Piercing . | . . . . Highest Corruption . | . . . . Average Corruption . | . . . . Corruption Purged . | . . . . Corruption Blocked . | . . . . Overload Shots . | . . . . Overflow Damage . | . . . . Projectiles . | . . . . Explosions . | . . . . Melee . | . . . . Knockbacks . | . . . . Impact . | . . . . Kinetic . | . . . . Secondary . | . . . . Self-Inflicted Damage . | . . . . Shots . | . . . . Rammed 1 | . 1 . . Targets Rammed 1 | . 1 . . Kicked . | . . . . Crushed . | . . . . Highest Temperature . | . . . . Average Temperature . | . . . . Received Heat Transfer 99 | . . 45 54 Siege Activations . | . . . . Martial Activations . | . . . . Shielding Activations . | . . . . Robots Disrupted . | . . . . Combat Hostiles . | . . . . Robots Corrupted . | . . . . Combat Hostiles . | . . . . Parts Fried . | . . . . Impact Corruptions . | . . . . Robots Melted . | . . . . Combat Hostiles . | . . . . Parts Melted . | . . . . Heat Transferred . | . . . . Parts Sabotaged . | . . . . Parts Stolen . | . . . . Parts Stripped . | . . . . Power Chain Reactions . | . . . . Alert | -11 -10 -9 -8 ------- Run | Yrd Mat Mat Mat Maximum Alert Level . | . . . . Low Security (%) 100 | 100 100 100 100 Level 1 . | . . . . Level 2 . | . . . . Level 3 . | . . . . Level 4 . | . . . . Level 5 . | . . . . High Security . | . . . . Max Security . | . . . . Peak Influence 100 | . 100 57 75 Initial 42 | . . 42 . Average 17 | . 13 25 15 Influence Increases 215 | . 125 15 75 Successful Hack 5 | . 5 . . Partial Spotted 30 | . 15 15 . Lose Combat Pursuer 180 | . 105 . 75 Influence Decreases 140 | . 25 115 . Entered New Map 58 | . . 58 . Time Decay 82 | . 25 57 . Squads Dispatched 2 | . 1 . 1 Investigation . | . . . . Extermination . | . . . . Reinforcement 2 | . 1 . 1 Assault . | . . . . Garrison . | . . . . Intercept . | . . . . Searches Triggered . | . . . . Construction Impeded . | . . . . Haulers Reinforced . | . . . . Active Scanning Responses . | . . . . Cargo Convoy Interrupts . | . . . . Stealth | -11 -10 -9 -8 --------- Run | Yrd Mat Mat Mat Distress Signals . | . . . . Communications Jammed . | . . . . Distress Signals . | . . . . Times Spotted 40 | . 15 10 15 Peak Tracking Total 12 | . 7 10 12 Tactical Retreats 3 | . 2 . 1 Traps | -11 -10 -9 -8 ------- Run | Yrd Mat Mat Mat Traps Triggered 1 | . . 1 . Indirectly . | . . . . Trap Hack Attempts . | . . . . Triggered . | . . . . Disarmed . | . . . . Reprogrammed . | . . . . Reused . | . . . . Traps Extracted . | . . . . Installed . | . . . . Triggered . | . . . . Machines | -11 -10 -9 -8 ---------- Run | Yrd Mat Mat Mat Machines Disabled . | . . . . Max in Single Turn . | . . . . Machines Repaired . | . . . . Machines Dismantled . | . . . . Machines Sabotaged . | . . . . Overloaded Fab Kills . | . . . . Hacking | -11 -10 -9 -8 --------- Run | Yrd Mat Mat Mat Machines Accessed 1 | . 1 . . Terminals 1 | . 1 . . Fabricators . | . . . . Repair Stations . | . . . . Recycling Units . | . . . . Scanalyzers . | . . . . Garrison Access . | . . . . Total Hacks 3 | . 3 . . Successful 1 | . 1 . . Failed 2 | . 2 . . Catastrophic 1 | . 1 . . Database Lockouts . | . . . . Manual 3 | . 3 . . Terminals 3 | . 3 . . Fabricators . | . . . . Repair Stations . | . . . . Recycling Units . | . . . . Scanalyzers . | . . . . Garrison Access . | . . . . Terminal Hacks . | . . . . Fabricator Hacks . | . . . . Repair Station Hacks . | . . . . Recycling Unit Hacks . | . . . . Scanalyzer . | . . . . Garrison Access Hacks . | . . . . Unauthorized Hacks 1 | . 1 . . Terminals 1 | . 1 . . Botnet 1 | . 1 . . Fabricators . | . . . . Repair Stations . | . . . . Recycling Units . | . . . . Scanalyzers . | . . . . Garrison Access . | . . . . Data Cores Recovered . | . . . . Used . | . . . . Hacking Detections 1 | . 1 . . Full Trace Events . | . . . . Feedback Events . | . . . . Feedback Blocked . | . . . . Robot Schematics Acquired . | . . . . Robots Built . | . . . . Authchips . | . . . . Time . | . . . . Total Robot Build Rating . | . . . . Part Schematics Acquired . | . . . . Parts Built . | . . . . Authchips . | . . . . Time . | . . . . Total Part Build Rating . | . . . . Part Studies Acquired . | . . . . Parts Repaired . | . . . . Time . | . . . . Parts Recycled . | . . . . Recycled Matter . | . . . . Retrieved Matter . | . . . . Retrieved Components . | . . . . Parts Scanalyzed . | . . . . Part Schematics Acquired . | . . . . Parts Damaged . | . . . . Bothacking | -11 -10 -9 -8 ------------ Run | Yrd Mat Mat Mat Used RIF Installer . | . . . . Robots Hacked . | . . . . Non-combat . | . . . . Combat . | . . . . Robot Hacks Applied . | . . . . Relay Couplers Released . | . . . . Fabnet Peak Effective % . | . . . . Robots Rewired . | . . . . Allies Hacked . | . . . . Hacks Repelled . | . . . . Allies | -11 -10 -9 -8 -------- Run | Yrd Mat Mat Mat Total Allies . | . . . . Largest Group . | . . . . Highest-Rated Group . | . . . . Highest-Rated Ally . | . . . . Total Orders . | . . . . Ally Attacks . | . . . . Total Damage . | . . . . Kills . | . . . . Allies Corrupted . | . . . . Allies Melted . | . . . . Intel | -11 -10 -9 -8 ------- Run | Yrd Mat Mat Mat Active Infowar (turns) 170 | . 36 78 56 Optics 134 | . . 78 56 Seismic 36 | . 36 . . Robot Analysis Total . | . . . . Derelict Logs Recovered . | . . . . Drone Launches . | . . . . Drone Recoveries . | . . . . Exploration | -11 -10 -9 -8 ------------- Run | Yrd Mat Mat Mat Turns Passed 380 | 36 147 141 56 Spaces Moved 694 | 35 278 272 109 Core 685 | 27 277 272 109 Treads 9 | 8 1 . . Legs . | . . . . Wheels . | . . . . Hover . | . . . . Flight . | . . . . Fastest Speed 50 | 50 50 50 50 Average Speed 51 | 76 50 50 50 Slowest Speed 160 | 160 160 50 50 Overloaded Moves . | . . . . Propulsion Burnouts . | . . . . Robots Hopped . | . . . . Potential Cave-ins . | . . . . Cave-ins Triggered . | . . . . Exploration Rate (%) 33 | 3 64 46 20 Regions Visited 3 Branch Regions . Pre-discovered Areas . | . . . . Known Exits Taken . | . . . . Unknown Exits Taken 3 | 1 1 1 . Scrap Searched . | . . . . Spaces Dug . | . . . . Terrain Destroyed . | . . . . Melee . | . . . . Projectile . | . . . . AOE . | . . . . Terrain Rammed . | . . . . Walls Destroyed . | . . . . Machines Disabled . | . . . . Actions | -11 -10 -9 -8 --------- Run | Yrd Mat Mat Mat Total 712 | 42 282 277 111 Wait . | . . . . Move 691 | 34 277 271 109 Hop . | . . . . Pick Up 5 | 2 . 2 1 Fast Attach 8 | 4 3 1 . Attach . | . . . . Detach 3 | 2 1 . . Swap . | . . . . Drop 4 | . . 3 1 Fire . | . . . . Melee . | . . . . Ram . | . . . . Kick . | . . . . Crush 1 | . 1 . . Escape Stasis . | . . . . Rewire . | . . . . Trap . | . . . . Miscellaneous . | . . . . Route ------- -11/Scrapyard -10/Materials (discovered 3 exits: [*Mat] / [*Min x2]) -9/Materials (discovered 3 exits: [*Mat x2] / [*Min]) -8/Materials (discovered 1 exit: [*Sto]) History --------- Turn | Location | Event 5 | -11/Scrapyard | Discovered new exit (range 14) 37 | -11/Scrapyard | Entered Materials 99 | -10/Materials | Discovered new exit (range 5) 119 | -10/Materials | Discovered new exit (range 16) 133 | -10/Materials | Discovered new exit (range 15) 184 | -10/Materials | Entered another Materials area 184 | -9/Materials | Evolved 2 slots: Propulsion x2 258 | -9/Materials | Discovered new exit (range 19) 294 | -9/Materials | Discovered new exit (range 6) 306 | -9/Materials | Build established: Mutant 315 | -9/Materials | Discovered new exit (range 17) 325 | -9/Materials | Entered another Materials area 325 | -8/Materials | Evolved 2 slots: Propulsion x2 372 | -8/Materials | Discovered new exit (range 20) 381 | -8/Materials | Self-destructed Last Messages --------------- 00315_ EXIT=FOUND PARAMETERS=PROPULSION+2 LOCATION=UNKNOWN GOAL=ESCAPE 00330_ Dropped Sml. Storage Unit. 00330_ Acquired Lrg. Storage Unit. 00345_ Lgt. Treads destroyed. 00352_ O-16 Technician: "IFF HANDSHAKE FAILED. SECURING TERMINAL." 00358_ ALERT: Hostiles spotted, dispatching reinforcements to Terminal M006. 00372_ EXIT=FOUND 00372_ Slug penetrates U-05 Engineer. 00372_ U-05 Engineer destroyed. 00375_ Slug penetrates U-05 Engineer. 00375_ Terminal disabled. 00377_ U-05 Engineer works on Matter Pump. 00379_ Penetrated by Slug. 00380_ U-05 Engineer works on Matter Pump. 00380_ R-06 Scavenger collects Wheel. Map ----- +----------------------------------------------------+ | ?????????????????????????????????????????????????? | | ?????????????????????????????????????????????????? | | ?????????????????????????????????????????????????? | | ?????????????????????????????????????????????????? | | ?????????????????????????????????????????????????? | | ?????????????????????????????????????????????????? | | ?????????????????????????????????????????????????? | | ?????????????????????????????????????????????????# | | ????????????????????????????????????????????????## | | ?????????????????????????????????????????????? | | ?????????????????????????????????????????????? | | ????????????????????????????????????????????? | | ????????????????????????????????????? #????? #???# | | ????????????????????????????????????? #????? #???# | | ????????????????????????????????????? #????? #???? | | ????????????????????????????????????? #????? #???? | | ????????????????????????????????#####+#????? #???? | | ????????????????????????????????# ######/#???? | | ????????????????????????????????# """ # = #???? | | ????????????????????#???????????# "G" # "" #???? | | ????????????????????# ??????????# " " # ""S #???? | | ????????????????????# ?????????# # "" #???? | | ????????????????????# s ????????# # #???? | | ???????????????????## #???????? ?? ????? | | ???????????????????# ##########+######+####### | | ???????????????????# @ | | ???????????????????# < w | | ???????????????????# = | | ???????????????????# ## ########### | | ???????????????????######?# = #?????????? | | ????????????????????????""" r #?????????? | | ???????????????????????#"R u #?????????? | | ???????????????????????#""" |%u<< #?????????? | | ???????????????????????#### h=u< #?????????? | | ????????????????????????? ????????? | | ???????????????????????? ???????? | | ???????????????????????#### ! ??????? | | ??????????????????????????###########+######?????? | | ?????????????????????????????????????????????????? | | ?????????????????????????????????????????????????? | | ?????????????????????????????????????????????????? | | ?????????????????????????????????????????????????? | | ?????????????????????????????????????????????????? | | ?????????????????????????????????????????????????? | | ?????????????????????????????????????????????????? | | ?????????????????????????????????????????????????? | | ?????????????????????????????????????????????????? | | ?????????????????????????????????????????????????? | | ?????????????????????????????????????????????????? | | ?????????????????????????????????????????????????? | +----------------------------------------------------+ Best States ------------- Heat Dissipation 31 Energy Generation 5 Energy Capacity 100 Matter Stores 121 Matter Capacity 300 Sight Range 20 Terrain Scan Density 10 Propulsion Shielding 33 Evasion (%) 50 Recoil Reduction 2 Item Schematics ----------------- None Robot Schematics ------------------ None Fabricated ------------ Nothing Repaired ---------- Nothing Studied --------- None Alien Tech Used ----------------- None Achievements -------------- None Challenges ------------ None Game ------ Seed PowerNullRocket Manual? 0 Play Time 00:04:33 Cumulative 396.6 hours Start 2026.06.26 @ 13:35:10 End 2026.06.26 @ 13:39:05 Sessions 1 Manual Loads 0 Difficulty Rogue Special Mode None Game No. 366 Rogue 366 Adventurer 0 Explorer 0 Win Type - Total 9 Types 6/0/2/0/0/0/0/0/0/1 Lore% 60 Gallery% 67 Achievement% 63 Wizard Run 0 Options --------- Layout 1 ASCII 0 Keyboard 0 Movement Mouse Keybinds 0 Fullscreen 2 Font 24/Smallcaps Map View 50x35 Zoom Use 17% Tactical HUD 1 Map Filters NONE Filters NONE Steam 1 RUN: 938bb997-2ada-4065-9656-44b7f1236e38